bitfinex/quotes_BTCUSD_20250123
["timestamp","ask_amount","ask_price","bid_price","bid_amount"]
[1737643208842,0.286362,104790.0,104770.0,0.09734729]
[1737643209075,0.1910688,104790.0,104770.0,0.09734729]
[1737643209289,0.0956348,104790.0,104770.0,0.14734729]
[1737643209492,0.2864928,104790.0,104770.0,0.09734729]
[1737643209693,0.03042913,104790.0,104770.0,0.14734729]
[1737643209928,0.0157775,104800.0,104780.0,0.19494729]
[1737643210137,5e-07,104800.0,104790.0,0.29277529]
[1737643210345,5e-07,104800.0,104790.0,0.31277529]
[1737643210713,0.0001425,104820.0,104810.0,0.48643079]
[1737643211067,5e-07,104820.0,104810.0,0.58377808]
[1737643211461,0.0001425,104840.0,104830.0,0.43641279]
[1737643211603,0.00064451,104840.0,104830.0,0.53376008]
[1737643212233,0.00064451,104840.0,104830.0,0.58376008]
[1737643212468,0.00064451,104840.0,104830.0,0.48376008]
[1737643212668,0.00064451,104840.0,104830.0,0.48676008]
[1737643212865,0.00064451,104840.0,104830.0,0.48976008]
[1737643213067,4e-05,104850.0,104840.0,0.215383]
[1737643213356,4e-05,104850.0,104840.0,0.31287976]
[1737643214159,4e-05,104850.0,104840.0,0.24287976]
[1737643214365,0.095414,104850.0,104840.0,0.14749676]
[1737643214575,0.10496961,104850.0,104840.0,0.00014947]
[1737643215056,0.25496961,104850.0,104840.0,0.00014947]
[1737643215256,4e-05,104850.0,104840.0,0.24687976]
[1737643215470,4e-05,104850.0,104840.0,0.24287976]
[1737643215878,4e-05,104850.0,104840.0,0.24687976]
[1737643216078,0.00604,104850.0,104840.0,0.24703646]
[1737643216462,4e-05,104850.0,104840.0,0.24603646]
[1737643216827,4e-05,104850.0,104840.0,0.24503646]
[1737643218080,4e-05,104850.0,104840.0,0.24203646]
[1737643218294,4e-05,104850.0,104840.0,0.34733646]
[1737643218438,4e-05,104850.0,104840.0,0.32733646]
[1737643218851,4e-05,104850.0,104840.0,0.003]
[1737643219035,0.095414,104850.0,104840.0,0.003]
[1737643219237,0.06681871,104850.0,104840.0,0.10334729]
[1737643219463,4e-05,104850.0,104840.0,0.24873029]
[1737643219664,4e-05,104850.0,104840.0,0.24273029]
[1737643219863,4e-05,104850.0,104840.0,0.24573029]
[1737643220126,4e-05,104850.0,104840.0,0.19873029]
[1737643220349,4e-05,104850.0,104840.0,0.24573029]
[1737643220931,4e-05,104850.0,104840.0,0.26573029]
[1737643221301,0.0001421,104870.0,104860.0,0.215365]
[1737643221487,0.0001421,104870.0,104860.0,0.19271229]
[1737643221688,1e-07,104870.0,104860.0,0.73373308]
[1737643221881,0.0001825,104900.0,104890.0,0.145337]
[1737643222099,0.0001825,104900.0,104890.0,0.24268429]
[1737643222855,0.29350504,104940.0,104910.0,0.240637]
[1737643223054,0.285907,104930.0,104910.0,0.4334498]
[1737643223235,0.09531,104920.0,104910.0,0.0974968]
[1737643223431,0.09531,104920.0,104910.0,0.00014951]
[1737643223883,0.36633079,104920.0,104910.0,0.00014951]
[1737643224058,0.36633079,104920.0,104910.0,0.00114951]
[1737643224059,0.61014727,104920.0,104910.0,0.00114951]
[1737643224265,0.70749456,104920.0,104910.0,0.00114951]
[1737643224458,0.51633079,104920.0,104910.0,0.00114951]
[1737643224684,0.51633079,104920.0,104910.0,0.0984968]
[1737643224861,0.381216,104930.0,104910.0,0.00214951]
[1737643225069,0.09531,104920.0,104910.0,0.00214951]
[1737643225260,0.36633079,104920.0,104910.0,0.00214951]
[1737643225466,0.36633079,104920.0,104910.0,0.00114951]
[1737643225662,0.51633079,104920.0,104910.0,0.00014951]
[1737643225862,0.51633079,104920.0,104910.0,0.00114951]
[1737643226085,0.24531,104920.0,104910.0,0.00114951]
[1737643226428,0.51633079,104920.0,104910.0,0.00114951]
[1737643226637,0.61367808,104920.0,104910.0,0.00114951]
[1737643227040,0.73102537,104920.0,104910.0,0.00114951]
[1737643227338,0.09531,104920.0,104910.0,0.1484968]
[1737643227552,4e-05,104950.0,104930.0,0.240591]
[1737643227794,4e-05,104950.0,104940.0,0.19263929]
[1737643228267,0.41637809,104960.0,104940.0,0.38321629]
[1737643228471,0.0500823,104960.0,104950.0,0.19263029]
[1737643228675,0.0500823,104960.0,104950.0,0.24259029]
[1737643229732,0.05058503,104960.0,104950.0,0.24559029]
[1737643229952,0.05058503,104960.0,104950.0,0.24259029]
[1737643230369,0.05058503,104960.0,104950.0,0.24559029]
[1737643230605,0.05058503,104960.0,104950.0,0.10030729]
[1737643230803,0.05058503,104960.0,104950.0,0.19559029]
[1737643231203,0.05058503,104960.0,104950.0,0.10030729]
[1737643231403,0.05058503,104960.0,104950.0,0.15030729]
[1737643232023,0.05058503,104960.0,104950.0,0.1992396]
[1737643232178,0.05058503,104960.0,104950.0,0.15030729]
[1737643232378,0.14585903,104960.0,104950.0,0.10447272]
[1737643232781,0.05058503,104960.0,104950.0,0.24975572]
[1737643232980,0.05058503,104960.0,104950.0,0.15447272]
[1737643233211,0.05058503,104960.0,104950.0,0.15647272]
[1737643233416,0.05058503,104960.0,104950.0,0.25175572]
[1737643234012,0.05058503,104960.0,104950.0,0.15647272]
[1737643234214,0.05058503,104960.0,104950.0,0.25175572]
[1737643234593,0.0052997,104960.0,104950.0,0.34935572]
[1737643234792,0.015777,105010.0,104990.0,0.05]
[1737643235062,0.111008,105010.0,104990.0,0.33784029]
[1737643235195,0.111008,105010.0,105000.0,0.00424099]
[1737643235394,0.04385496,105010.0,105000.0,0.05424099]
[1737643235622,0.04385496,105010.0,105000.0,0.15158828]
[1737643236050,0.12856008,105010.0,105000.0,0.0543905]
[1737643236252,0.12856008,105010.0,105000.0,0.0043905]
[1737643236379,0.27856008,105010.0,105000.0,0.0043905]
[1737643236584,0.27856008,105010.0,105000.0,0.00014951]
[1737643236807,0.261006,105010.0,105000.0,0.00436737]
[1737643237017,0.261006,105010.0,105000.0,0.00314951]
[1737643237259,0.111006,105010.0,105000.0,0.00736737]
[1737643237458,0.111006,105010.0,105000.0,0.00014951]
[1737643237686,0.261006,105010.0,105000.0,0.00014951]
[1737643237861,0.261006,105010.0,105000.0,0.00536737]
[1737643238567,1.20476629,105010.0,105000.0,0.00536737]
[1737643238766,0.47570058,105010.0,105000.0,0.00536737]
[1737643238942,0.47570058,105010.0,105000.0,0.00114951]
[1737643239324,0.261006,105010.0,105000.0,0.00436737]
[1737643239734,0.270006,105010.0,105000.0,0.00536737]
[1737643239956,0.36735329,105010.0,105000.0,0.00536737]
[1737643240158,0.270006,105010.0,105000.0,0.00536737]
[1737643240366,0.261006,105010.0,105000.0,0.00436737]
[1737643240572,0.14896526,105010.0,105000.0,0.00536737]
[1737643240768,0.29896526,105010.0,105000.0,0.00536737]
[1737643240944,0.269006,105010.0,105000.0,0.00536737]
[1737643242167,0.261006,105010.0,105000.0,0.00436737]
[1737643242370,0.270006,105010.0,105000.0,0.00114951]
[1737643242717,0.79090329,105010.0,105000.0,0.00114951]
[1737643242925,0.78190329,105010.0,105000.0,0.00014951]
[1737643243088,0.87925058,105010.0,105000.0,0.00014951]
[1737643243290,0.74144158,105010.0,105000.0,0.001]
[1737643243475,0.09528,104960.0,104950.0,0.05]
[1737643243678,0.340494,104990.0,104960.0,0.145268]
[1737643243898,0.095243,105000.0,104970.0,0.14734729]
[1737643244104,0.285727,105000.0,104980.0,0.095254]
[1737643244462,0.190485,105000.0,104970.0,0.145262]
[1737643244575,0.190485,105000.0,104980.0,0.05]
[1737643244576,0.095247,104990.0,104980.0,0.05]
[1737643244776,0.095247,104990.0,104980.0,0.24259729]
[1737643244777,0.0176111,104990.0,104980.0,0.24259729]
[1737643244975,0.0176111,104990.0,104980.0,0.43310829]
[1737643245622,0.0246111,104990.0,104980.0,0.09734729]
[1737643245832,0.0246111,104990.0,104980.0,0.24260329]
[1737643246035,0.1128581,104990.0,104980.0,0.09734729]
[1737643246286,0.285719,105000.0,104980.0,0.24260329]
[1737643246509,0.285719,105000.0,104980.0,0.43311229]
[1737643246712,0.10559577,105000.0,104990.0,0.09734729]
[1737643246909,0.095238,105000.0,104990.0,0.14734729]
[1737643247116,0.095238,105000.0,104990.0,0.09734729]
[1737643247331,0.095238,105000.0,104980.0,0.287753]
[1737643247503,0.285721,105000.0,104980.0,0.57360329]
[1737643247703,0.095239,105000.0,104980.0,0.57360129]
[1737643248045,0.2587209,105000.0,104980.0,0.14749693]
[1737643248204,0.476208,105000.0,104980.0,0.24275093]
[1737643248415,0.190478,105000.0,104990.0,0.05]
[1737643248608,0.285723,105000.0,104980.0,0.43326293]
[1737643248816,0.1212969,105010.0,104990.0,0.24258829]
[1737643249011,0.095238,105000.0,104980.0,0.09740364]
[1737643249188,0.190485,105000.0,104980.0,0.00214964]
[1737643249395,0.095247,104990.0,104980.0,0.00014964]
[1737643249600,0.47622,105000.0,104980.0,0.09540464]
[1737643249804,0.095245,105000.0,104990.0,0.05]
[1737643249987,0.5022379,105010.0,104990.0,0.14734729]
[1737643250238,0.0260669,105010.0,105000.0,0.19258529]
[1737643250439,0.1212959,105010.0,105000.0,0.14734729]
[1737643250829,0.0260669,105010.0,105000.0,0.24258529]
[1737643251014,0.1212959,105010.0,105000.0,0.14734729]
[1737643251625,0.1212959,105010.0,105000.0,0.14534729]
[1737643252408,0.1302959,105010.0,105000.0,0.09634729]
[1737643252648,0.024777,105010.0,105000.0,0.24158529]
[1737643252826,0.015777,105010.0,105000.0,0.24058529]
[1737643253270,0.015777,105010.0,105000.0,0.24158529]
[1737643253887,0.015777,105010.0,105000.0,0.3121378]
[1737643254089,0.01047581,105060.0,105050.0,0.145192]
[1737643254291,0.01047581,105060.0,105050.0,0.195192]
[1737643254507,0.01047581,105060.0,105050.0,0.21931138]
[1737643254715,0.01047581,105060.0,105050.0,0.24253929]
[1737643255121,0.01047581,105060.0,105050.0,0.26646346]
[1737643255328,0.01047581,105060.0,105050.0,0.24253929]
[1737643255537,0.10565881,105060.0,105050.0,0.09749693]
[1737643255779,0.44901159,105060.0,105000.0,1.002]
[1737643255989,1.05341808,105050.0,105010.0,0.09734729]
[1737643256239,0.29603681,105060.0,105050.0,0.002]
[1737643256444,0.44603681,105060.0,105050.0,0.002]
[1737643256672,0.285594,105050.0,105030.0,0.09734729]
[1737643256885,0.095201,105040.0,105030.0,0.09734729]
[1737643257120,0.095201,105040.0,105000.0,1.365409]
[1737643257121,0.1975996,105040.0,105000.0,1.365409]
[1737643257330,0.09522,105020.0,105010.0,0.09734729]
[1737643257752,0.095229,105010.0,105000.0,1.00114967]
[1737643258165,0.095229,105010.0,105000.0,1.09849696]
[1737643258393,0.095229,105010.0,105000.0,1.09749696]
[1737643258595,0.095229,105010.0,105000.0,1.00014967]
[1737643259358,0.40106232,105010.0,105000.0,0.36656187]
[1737643259560,0.93725751,105010.0,105000.0,0.06733218]
[1737643259764,0.245265,104970.0,104960.0,0.01264748]
[1737643260123,0.095274,104960.0,104950.0,0.00029883]
[1737643260349,0.095274,104960.0,104890.0,0.1239]
[1737643260350,0.095326,104910.0,104890.0,0.1239]
[1737643260558,0.36390919,104900.0,104890.0,0.00674248]
[1737643260795,0.51390919,104900.0,104890.0,0.00674248]
[1737643261047,0.265337,104890.0,104880.0,0.07387053]
[1737643261246,0.09516272,104890.0,104880.0,0.07387053]
[1737643261454,0.26858119,104920.0,104890.0,0.05]
[1737643261666,0.26858119,104920.0,104900.0,0.09734729]
[1737643261667,0.45921719,104920.0,104900.0,0.09734729]
[1737643261878,0.36389419,104920.0,104900.0,0.09734729]
[1737643262073,0.26858119,104920.0,104900.0,0.19267529]
[1737643262303,0.45976991,104920.0,104900.0,0.19267529]
[1737643262497,0.190653,104910.0,104880.0,0.00014995]
[1737643262619,0.40698276,104920.0,104900.0,0.05]
[1737643262820,0.07437073,104960.0,104930.0,0.05]
[1737643262821,0.28587,104950.0,104930.0,0.05]
[1737643263065,0.2037646,104960.0,104940.0,0.09734729]
[1737643263267,0.45246801,105000.0,104950.0,0.33584]
[1737643263268,0.02,104990.0,104950.0,0.33584]
[1737643263445,0.095262,104980.0,104960.0,0.43316829]
[1737643263644,0.285761,104990.0,104970.0,0.095264]
[1737643263884,0.095243,105000.0,104980.0,0.38311329]
[1737643264039,0.095264,104980.0,104950.0,0.285832]
[1737643264236,0.095257,104980.0,104960.0,0.19261429]
[1737643264443,0.28625041,104990.0,104960.0,0.24072529]
[1737643264640,0.00050341,104990.0,104970.0,0.19053]
[1737643264924,0.00050341,104990.0,104940.0,0.426143]
[1737643265126,0.285798,104970.0,104950.0,0.19262829]
[1737643265370,0.285798,104970.0,104950.0,0.09734729]
[1737643265371,0.3334334,104970.0,104950.0,0.09734729]
[1737643265555,0.095262,104980.0,104960.0,0.095272]
[1737643265704,0.285776,104980.0,104960.0,0.38316729]
[1737643265900,0.285776,104980.0,104940.0,0.115291]
[1737643265901,0.190524,104980.0,104940.0,0.115291]
[1737643266086,0.38312729,104980.0,104970.0,0.001]
[1737643266531,0.19057,104950.0,104910.0,0.303434]
[1737643266743,0.095301,104930.0,104910.0,0.38330329]
[1737643266916,0.28796829,104920.0,104890.0,0.05]
[1737643267116,0.095321,104910.0,104890.0,0.21018129]
[1737643267325,0.095337,104890.0,104880.0,0.0079]
[1737643267560,0.095337,104890.0,104880.0,0.15524729]
[1737643267773,0.095337,104890.0,104880.0,0.00840341]
[1737643268178,0.091337,104890.0,104880.0,0.00840341]
[1737643268386,0.15,104910.0,104880.0,0.00840341]
[1737643268604,0.24734729,104910.0,104880.0,0.10374541]
[1737643268796,0.09532,104910.0,104890.0,0.09734729]
[1737643269027,0.26912443,104940.0,104880.0,0.36443841]
[1737643269028,0.19066,104900.0,104880.0,0.00840341]
[1737643269237,0.3,104940.0,104890.0,0.09734729]
[1737643269238,0.435977,104910.0,104890.0,0.09734729]
[1737643269456,0.285963,104910.0,104890.0,0.05]
[1737643269652,0.476603,104910.0,104880.0,0.34444141]
[1737643269856,0.245337,104890.0,104880.0,0.00840341]
[1737643270059,0.74427229,104890.0,104880.0,0.00840341]
[1737643270182,0.65046543,104900.0,104880.0,0.00840341]
[1737643270183,0.095331,104900.0,104880.0,0.00840341]
[1737643270387,0.285989,104900.0,104880.0,0.00840341]
[1737643270611,0.190658,104900.0,104880.0,0.00840341]
[1737643270944,0.19268429,104890.0,104880.0,0.00840341]
[1737643271379,0.36568429,104890.0,104880.0,0.00840341]
[1737643271571,0.34268429,104890.0,104880.0,0.00840341]
[1737643271799,0.19268429,104890.0,104880.0,0.00840341]
[1737643272343,0.19268429,104890.0,104880.0,0.01040341]
[1737643272553,0.285992,104900.0,104880.0,0.01040341]
[1737643272757,0.34268429,104890.0,104880.0,0.01040341]
[1737643272984,0.34268429,104890.0,104840.0,0.00029904]
[1737643272985,0.190694,104880.0,104840.0,0.00029904]
[1737643273142,0.190766,104840.0,104780.0,0.02029778]
[1737643273346,0.36455243,104790.0,104780.0,0.00029778]
[1737643273540,0.36455243,104790.0,104780.0,0.00079979]
[1737643273744,0.208158,104790.0,104780.0,0.00079979]
[1737643273948,0.19277529,104790.0,104780.0,0.00079979]
[1737643274145,0.30107529,104790.0,104780.0,0.00079979]
[1737643274350,0.37496293,104790.0,104780.0,0.00079979]
[1737643274555,0.41037593,104790.0,104780.0,0.00079979]
[1737643274795,0.41478793,104790.0,104780.0,0.00079979]
[1737643275002,0.095428,104790.0,104780.0,0.00079979]
[1737643275353,0.55539743,104800.0,104780.0,0.00279979]
[1737643275555,0.36454743,104800.0,104780.0,0.10014708]
[1737643275962,0.36454843,104800.0,104780.0,0.10014708]
[1737643276157,0.26912443,104800.0,104780.0,0.62733408]
[1737643276383,0.15111177,104840.0,104810.0,0.09541]
[1737643276603,0.36449443,104860.0,104820.0,0.33813529]
[1737643276808,0.36449343,104860.0,104840.0,0.05]
[1737643277019,0.095361,104870.0,104840.0,0.43347929]
[1737643277218,0.095361,104870.0,104820.0,0.236588]
[1737643277219,0.36647172,104860.0,104810.0,0.09541]
[1737643277428,0.095419,104800.0,104790.0,0.0824]
[1737643277835,0.095428,104790.0,104780.0,0.00029778]
[1737643278031,0.190852,104800.0,104780.0,0.09814708]
[1737643278241,0.095428,104790.0,104780.0,0.00079979]
[1737643278449,0.245428,104790.0,104780.0,0.00379979]
[1737643278653,0.190824,104810.0,104780.0,0.19657708]
[1737643278855,0.095404,104820.0,104790.0,0.28819029]
[1737643279058,0.095394,104830.0,104790.0,0.28819029]
[1737643279267,0.190762,104850.0,104810.0,0.095409]
[1737643279466,0.01929166,104860.0,104820.0,0.09734729]
[1737643279678,0.09734729,104850.0,104790.0,0.05]
[1737643279938,0.43125243,104840.0,104800.0,0.09734729]
[1737643280186,0.07329087,104860.0,104800.0,0.09734729]
[1737643280187,0.45983443,104880.0,104820.0,0.321203]
[1737643280428,0.190731,104860.0,104830.0,0.05]
[1737643280588,0.33110429,104870.0,104830.0,0.09734729]
[1737643280589,0.09539,104840.0,104830.0,0.09734729]
[1737643280801,0.02,104820.0,104800.0,0.00029946]
[1737643281004,0.02,104830.0,104800.0,0.09814876]
[1737643281205,0.286222,104820.0,104800.0,0.09814876]
[1737643281417,0.09541,104810.0,104800.0,0.00080147]
[1737643281810,0.24541,104810.0,104800.0,0.00080147]
[1737643282337,0.36275729,104810.0,104800.0,0.00080147]
[1737643282502,0.24541,104810.0,104800.0,0.00080147]
[1737643282906,1.09796729,104810.0,104800.0,0.00080147]
[1737643283105,0.99592777,104810.0,104800.0,0.00080147]
[1737643283426,1.01892777,104810.0,104800.0,0.00280147]
[1737643283770,0.99196212,104810.0,104800.0,0.00280147]
[1737643284029,0.245428,104790.0,104780.0,0.00029778]
[1737643284245,0.265456,104760.0,104750.0,0.015635]
[1737643284455,2.96106422,104760.0,104750.0,0.00015004]
[1737643284670,2.96106422,104760.0,104730.0,0.0002982]
[1737643284671,0.245474,104740.0,104730.0,0.0002982]
[1737643284871,0.02,104730.0,104690.0,0.00029799]
[1737643285143,0.15281,104700.0,104690.0,0.00029799]
[1737643285337,1.03023685,104700.0,104690.0,0.00029799]
[1737643285494,1.07824409,104700.0,104690.0,1e-08]
[1737643285694,0.14351724,104700.0,104690.0,1e-08]
[1737643285922,0.66737638,104710.0,104690.0,1e-08]
[1737643286276,0.118547,104660.0,104650.0,0.065635]
[1737643286475,0.61930172,104660.0,104610.0,0.00029967]
[1737643286607,0.095578,104630.0,104620.0,0.09734729]
[1737643286815,0.095584,104620.0,104610.0,0.00029967]
[1737643287018,0.49783928,104620.0,104610.0,0.00029967]
[1737643287199,0.46205572,104620.0,104610.0,0.00029967]
[1737643287651,0.65651707,104620.0,104610.0,0.00029967]
[1737643287855,0.65651707,104620.0,104560.0,0.1276]
[1737643287856,0.191186,104610.0,104560.0,0.1776]
[1737643288085,0.65346698,104580.0,104560.0,0.1276]
[1737643288284,0.65346698,104580.0,104560.0,0.08]
[1737643288285,0.095629,104570.0,104560.0,0.08]
[1737643288557,0.51831927,104600.0,104550.0,0.05]
[1737643288771,0.4326562,104600.0,104580.0,0.095618]
[1737643289015,0.11168249,104600.0,104570.0,0.336867]
[1737643289269,0.09734729,104590.0,104560.0,0.05]
[1737643289526,0.33201379,104600.0,104560.0,0.19298029]
[1737643289754,0.3962343,104600.0,104570.0,0.05]
[1737643290018,0.0194386,104610.0,104570.0,0.28859029]
[1737643290019,0.191187,104610.0,104570.0,0.28859029]
[1737643290271,0.095611,104590.0,104580.0,0.003]
[1737643290594,0.153348,104590.0,104580.0,0.003]
[1737643290776,1.28125797,104640.0,104580.0,0.003]
[1737643290777,0.11171467,104650.0,104600.0,0.211191]
[1737643291030,0.10710733,104650.0,104620.0,0.05]
[1737643291273,0.191069,104680.0,104630.0,0.30849629]
[1737643291489,0.382107,104690.0,104640.0,0.243964]
[1737643291710,0.095533,104680.0,104650.0,0.09734729]
[1737643291965,0.28840029,104690.0,104650.0,0.40400929]
[1737643291966,0.09552,104690.0,104650.0,0.40400929]
[1737643292207,0.3343217,104690.0,104650.0,0.40400929]
[1737643292452,0.09554,104670.0,104640.0,0.1277]
[1737643292729,0.095556,104650.0,104640.0,0.0784]
[1737643292943,0.09734729,104670.0,104640.0,0.09734729]
[1737643292944,0.191078,104670.0,104640.0,0.09734729]
[1737643293171,0.3304149,104690.0,104650.0,0.09734729]
[1737643293172,0.0477587,104690.0,104650.0,0.09734729]
[1737643293397,0.095529,104680.0,104650.0,0.11734729]
[1737643293617,0.286579,104690.0,104660.0,0.1314]
[1737643293839,0.286578,104690.0,104660.0,0.22874729]
[1737643294067,0.191073,104680.0,104660.0,0.1314]
[1737643294319,0.095538,104670.0,104660.0,0.1314]
[1737643294532,0.1433062,104670.0,104660.0,0.1314]
[1737643294751,0.1433062,104670.0,104660.0,0.0815]
[1737643294980,0.245538,104670.0,104640.0,0.052]
[1737643295214,0.095556,104650.0,104640.0,0.14934729]
[1737643295488,0.24554,104670.0,104640.0,0.14934729]
[1737643295779,0.03483357,104700.0,104650.0,0.16734729]
[1737643296030,0.191061,104680.0,104650.0,0.16734729]
[1737643296255,0.286615,104670.0,104650.0,0.09734729]
[1737643296482,0.286616,104670.0,104650.0,0.09734729]
[1737643296683,0.095539,104670.0,104660.0,0.002]
[1737643296928,0.00015057,104680.0,104660.0,0.09934729]
[1737643297178,0.00015057,104680.0,104670.0,0.14734729]
[1737643297430,0.09568557,104680.0,104640.0,0.286681]
[1737643297661,0.095547,104660.0,104650.0,0.09734729]
[1737643297918,0.56119829,104660.0,104630.0,0.0815]
[1737643298155,0.245565,104640.0,104630.0,0.0815]
[1737643298378,0.245574,104630.0,104620.0,0.00029946]
[1737643298611,0.461708,104630.0,104620.0,0.00029946]
[1737643298861,0.60914471,104630.0,104620.0,0.00029946]
[1737643299100,0.63214471,104630.0,104620.0,0.00029946]
[1737643299344,0.63214471,104630.0,104620.0,0.00080085]
[1737643300065,0.68944471,104630.0,104620.0,0.00080085]
[1737643300300,0.095611,104590.0,104580.0,0.02]
[1737643300559,0.095611,104590.0,104580.0,0.09734729]
[1737643300777,0.16347825,104630.0,104580.0,0.11734729]
[1737643300778,0.28677,104620.0,104580.0,0.11734729]
[1737643300992,0.095602,104600.0,104590.0,0.09734729]
[1737643301194,0.191211,104600.0,104580.0,0.02]
[1737643301349,0.286793,104610.0,104590.0,0.09734729]
[1737643301550,0.382396,104610.0,104590.0,0.09734729]
[1737643301754,0.477995,104610.0,104590.0,0.09734729]
[1737643302058,0.286796,104610.0,104590.0,0.09734729]
[1737643302284,0.191142,104640.0,104610.0,0.02]
[1737643302517,0.191142,104640.0,104620.0,0.09734729]
[1737643302518,0.477861,104640.0,104620.0,0.09734729]
[1737643302722,0.095574,104630.0,104620.0,0.09734729]
[1737643303327,0.095574,104630.0,104590.0,0.76047163]
[1737643303328,0.19117,104620.0,104590.0,0.02]
[1737643303353,0.15,104610.0,104590.0,0.07]
[1737643303583,0.15,104610.0,104600.0,0.09734729]
[1737643303845,0.095557,104650.0,104620.0,0.165583]
[1737643304070,0.19129255,104640.0,104610.0,0.1304]
[1737643304298,0.09749784,104640.0,104610.0,0.0822]
[1737643304520,0.095584,104620.0,104610.0,0.0822]
[1737643304747,0.373358,104620.0,104610.0,0.0822]
[1737643304986,0.15,104620.0,104610.0,0.0822]
[1737643305228,0.245584,104620.0,104610.0,0.0822]
[1737643305467,0.245384,104620.0,104610.0,0.0822]
[1737643305735,0.368875,104620.0,104610.0,0.0822]
[1737643305932,0.245384,104620.0,104610.0,0.0822]
[1737643306418,0.340979,104620.0,104580.0,0.28961909]
[1737643306648,0.6809618,104620.0,104590.0,0.09734729]
[1737643306880,0.286793,104610.0,104590.0,0.09734729]
[1737643307116,0.095605,104600.0,104580.0,0.17400009]
[1737643307356,0.095605,104600.0,104580.0,0.27134738]
[1737643307608,0.286809,104600.0,104580.0,0.27134738]
[1737643307865,0.2032128,104620.0,104590.0,0.09734729]
[1737643308145,0.008,104620.0,104610.0,0.001]
[1737643308353,0.158,104620.0,104610.0,0.001]
[1737643308842,0.15,104620.0,104600.0,0.02]
[1737643309089,0.16618801,104620.0,104600.0,0.11734729]
[1737643309312,0.095593,104610.0,104590.0,0.02]
[1737643309592,0.191187,104610.0,104590.0,0.09734729]
[1737643309849,0.382384,104610.0,104590.0,0.09734729]
[1737643310111,0.095602,104600.0,104590.0,0.09734729]
[1737643310364,0.382384,104610.0,104590.0,0.09734729]
[1737643310654,0.45295601,104620.0,104590.0,0.09734729]
[1737643310922,0.01618801,104620.0,104600.0,0.09734729]
[1737643311154,0.095575,104630.0,104600.0,0.45615229]
[1737643311384,0.40181846,104640.0,104600.0,0.45615229]
[1737643311385,0.382286,104640.0,104600.0,0.26494829]
[1737643311645,0.00015055,104640.0,104610.0,0.02]
[1737643311935,0.00015055,104640.0,104630.0,0.293874]
[1737643312196,0.09571555,104640.0,104630.0,0.1283]
[1737643312429,0.15,104620.0,104600.0,0.1964]
[1737643312696,0.28686055,104640.0,104610.0,0.14734729]
[1737643312960,0.28686055,104640.0,104600.0,0.6234]
[1737643312961,0.00015055,104640.0,104630.0,0.115574]
[1737643313240,0.00015055,104640.0,104630.0,0.26492129]
[1737643313492,0.00015055,104640.0,104630.0,0.11934729]
[1737643313717,0.00015055,104640.0,104630.0,0.09934729]
[1737643313718,0.09571555,104640.0,104630.0,0.09934729]
[1737643313947,0.1243994,104640.0,104630.0,0.002]
[1737643314194,0.4092524,104640.0,104630.0,0.002]
[1737643314430,0.15,104630.0,104600.0,0.1254]
[1737643314685,0.15,104630.0,104580.0,0.00030009]
[1737643314686,0.095611,104590.0,104580.0,0.00030009]
[1737643314920,0.245611,104590.0,104580.0,0.00030009]
[1737643315165,0.452091,104590.0,104580.0,0.00030009]
[1737643315429,0.8297764,104590.0,104580.0,0.00030009]
[1737643315689,0.8870764,104590.0,104540.0,0.090735]
[1737643315925,0.245648,104550.0,104540.0,0.01578532]
[1737643316205,0.640249,104550.0,104540.0,0.01578532]
[1737643316453,0.43739843,104550.0,104540.0,0.01578532]
[1737643316696,0.55774572,104550.0,104540.0,0.01578532]
[1737643316963,0.387319,104550.0,104540.0,0.01578532]
[1737643317203,0.15,104550.0,104540.0,0.13313261]
[1737643317450,0.15,104550.0,104540.0,0.11313261]
[1737643317706,0.02954177,104590.0,104550.0,0.02]
[1737643317946,0.14141618,104590.0,104580.0,0.001]
[1737643318215,0.40696147,104590.0,104580.0,0.001]
[1737643318537,0.1155238,104590.0,104570.0,0.02]
[1737643318718,0.09562,104580.0,104570.0,0.11734729]
[1737643318959,0.286785,104610.0,104580.0,0.02]
[1737643319205,0.286764,104620.0,104600.0,0.02]
[1737643319455,0.4320583,104620.0,104590.0,0.0997]
[1737643319702,0.11591973,104620.0,104600.0,0.11734729]
[1737643319951,0.191275,104640.0,104600.0,0.11734729]
[1737643319952,0.02033949,104640.0,104630.0,0.02]
[1737643320224,0.000143,104640.0,104630.0,0.39062129]
[1737643320471,0.0001429,104680.0,104660.0,0.02]
[1737643320702,0.0001429,104680.0,104660.0,0.36814363]
[1737643320982,0.0001429,104680.0,104670.0,0.26738448]
[1737643321262,0.0505431,104710.0,104700.0,0.16551]
[1737643321509,0.0505431,104710.0,104700.0,0.16734729]
[1737643321769,0.09940788,104730.0,104720.0,0.02]
[1737643321770,0.00392088,104730.0,104720.0,0.02]
[1737643322067,0.00392088,104730.0,104720.0,0.24937398]
[1737643322376,0.00392088,104730.0,104720.0,0.29937398]
[1737643322547,0.0001423,104750.0,104740.0,0.165474]
[1737643322811,0.0001423,104750.0,104740.0,0.26282129]
[1737643322812,0.00029273,104750.0,104740.0,0.26282129]
[1737643323051,0.0001423,104790.0,104780.0,0.115438]
[1737643323336,0.00064362,104790.0,104780.0,0.11734729]
[1737643323775,0.190876,104780.0,104750.0,0.02]
[1737643324010,0.00064362,104790.0,104760.0,0.16734729]
[1737643324250,0.00064362,104790.0,104780.0,0.02]
[1737643324488,0.00064362,104790.0,104780.0,0.11734729]
[1737643324747,0.00064362,104790.0,104780.0,0.16734729]
[1737643325178,0.00064362,104790.0,104780.0,0.11734729]
[1737643325444,0.00064362,104790.0,104780.0,0.001]
[1737643325701,0.28695262,104790.0,104780.0,0.001]
[1737643325980,0.43695262,104790.0,104780.0,0.001]
[1737643326268,0.436329,104780.0,104750.0,0.02]
[1737643326523,0.40079634,104780.0,104750.0,0.09734729]
[1737643326766,0.15,104760.0,104740.0,0.02]
[1737643327017,0.00064362,104790.0,104770.0,0.07]
[1737643327281,0.00064362,104790.0,104780.0,0.11734729]
[1737643327523,0.00064362,104790.0,104770.0,0.1477]
[1737643327793,0.00064362,104790.0,104780.0,0.001]
[1737643327794,0.10407962,104790.0,104780.0,0.001]
[1737643328056,0.10407162,104790.0,104780.0,0.11834729]
[1737643328296,0.25407162,104790.0,104780.0,0.001]
[1737643328567,0.08498501,104780.0,104770.0,0.0692845]
[1737643328819,0.095465,104750.0,104740.0,0.049]
[1737643329075,0.095465,104750.0,104700.0,0.069]